fUSD/lending_fUSD_20240126
["ID","MTS","AMOUNT","RATE_DAILY","PERIOD"]
[312803736,1706272238887,-199.33,0.00031137,2]
[312803737,1706272238897,-245.68,0.00031146,2]
[312803738,1706272238907,-1745.46,0.00031146,2]
[312803739,1706272238916,-444.68,0.00031443,2]
[312803740,1706272238928,-493.96718835,0.000315,4]
[312803741,1706272238938,-245.68,0.00031579,2]
[312803742,1706272238947,-1745.46,0.00031579,2]
[312803743,1706272238957,-152.53360568,0.000316,2]
[312803744,1706272238966,-180.0,0.00031644,2]
[312803745,1706272238975,-185.23,0.00031644,2]
[312803746,1706272238984,-150.0,0.00031699,2]
[312803747,1706272238994,-176.58,0.000317,2]
[312803748,1706272239003,-500.0,0.000317,2]
[312803749,1706272239012,-9241.947755,0.000318,3]
[312803750,1706272239023,-4963.49662326,0.000318,3]
[312803751,1706272239035,-21970.824,0.000318,3]
[312803756,1706272240359,-3179.34227075,0.000318,3]
[312803757,1706272240371,-8052.90167903,0.000318,3]
[312803758,1706272240383,-2242.53088869,0.000318,3]
[312803759,1706272240974,-298.33106,0.000318,3]
[312803760,1706272240986,-1563.90252518,0.000318,3]
[312803761,1706272241033,-990.33548634,0.000318,3]
[312803762,1706272241044,-790.41000001,0.000318,3]
[312803763,1706272241056,-359.60538072,0.000318,3]
[312803764,1706272241090,-1062.73661376,0.000318,3]
[312803765,1706272241101,-20453.16296944,0.000318,3]
[312803766,1706272241112,-2421.31069343,0.000318,3]
[312803767,1706272241123,-589.55763454,0.000318,3]
[312803768,1706272241170,-633.31635902,0.000318,3]
[312803769,1706272241206,-2450.33079292,0.000318,3]
[312803770,1706272241218,-338.64724169,0.000318,3]
[312803818,1706272243024,-532.6225715,0.000318,3]
[312803819,1706272243085,-500.0,0.000318,3]
[312803820,1706272243096,-15928.9723248,0.000318,3]
[312803821,1706272243109,-666.59723267,0.000318,3]
[312803822,1706272243140,-5400.39500001,0.000318,3]
[312803823,1706272243151,-302.0,0.000318,3]
[312803824,1706272243252,-456.6805457,0.000318,3]
[312803878,1706272246014,-335.1309015,0.00031799,4]
[312803879,1706272246023,-2776.91260854,0.000318,3]
[312803880,1706272246033,-277.0,0.0003188,2]
[312803881,1706272246042,-204.0,0.0003188,2]
[312803882,1706272246052,-4825.49984916,0.0003199,3]
[312803883,1706272246082,-764.135,0.0003199,3]
[312803931,1706272247194,-2265.39866149,0.0003199,3]
[312803932,1706272247207,-798.31610993,0.0003199,3]
[312803933,1706272247216,-1019.0,0.00032,3]
[312803934,1706272247225,-256.93389008,0.00032,2]
[312803935,1706272247237,-744.06610992,0.00032,2]
[312803936,1706272247246,-156.09936913,0.00032,2]
[312803937,1706272247255,-4305.83883137,0.00032,2]
[312803938,1706272247270,-858.33591374,0.00032,2]
[312803983,1706273432180,-154.02860311,0.00023099,2]
[312803984,1706273432191,-435.2659414,0.000231,2]
[312803985,1706273432201,-2557.79368994,0.00023198,2]
[312803986,1706273432210,-716.51,0.00023199,2]
[312803987,1706273432220,-737.72,0.00023199,2]
[312803988,1706273432229,-725.02,0.00023199,2]
[312803989,1706273432238,-720.65,0.00023199,2]
[312803990,1706273432248,-727.66,0.00023199,2]
[312803991,1706273432257,-150.0,0.000232,2]
[312803992,1706273432266,-1056.0,0.000234,2]
[312803993,1706273432275,-10555.0,0.000234,2]
[312803994,1706273432284,-154.02860308,0.00023963,2]
[312803995,1706273432293,-171.04,0.00024658,2]
[312803996,1706273432303,-154.02860308,0.00024826,2]
[312803997,1706273432312,-450.0,0.00025,3]
[312803998,1706273432321,-624.78,0.00025,2]
[312803999,1706273432330,-259.1,0.00025,2]
[312804000,1706273432340,-3242.03,0.00025,2]
[312804001,1706273432353,-1903.14431336,0.00025,2]
[312804002,1706273432362,-202.3461783,0.00025285,2]
[312804003,1706273432372,-1586.52836602,0.00025286,2]
[312804004,1706273432381,-2504.89,0.00025288,2]
[312804005,1706273432391,-546.41,0.00025289,2]
[312804006,1706273432401,-249.865,0.00025556,2]
[312804007,1706273432410,-4052.13778737,0.00025556,2]
[312804008,1706273432422,-780.78081971,0.00025556,2]
[312804009,1706273432433,-3924.14133732,0.00025556,2]
[312804010,1706273432448,-1200.8370556,0.00025556,2]
[312804011,1706273432457,-122.92998834,0.00025556,2]
[312804012,1706273432468,-27.07001166,0.00025556,2]
[312804013,1706273432477,-154.02860308,0.0002569,2]
[312804014,1706273432487,-171.04,0.00026027,2]
[312804015,1706273432496,-129.39738526,0.00026554,2]
[312804016,1706273432508,-24.63121782,0.00026554,2]
[312804017,1706273432517,-244.96,0.00026613,2]
[312804018,1706273432527,-289.10078218,0.00027,3]
[312804019,1706273432538,-210.89921782,0.00027,3]
[312804020,1706273432548,-171.04,0.00027397,2]
[312804022,1706273432558,-154.02860308,0.00027418,2]
[312804024,1706273432567,-250.0,0.00027574,2]
[312804026,1706273432577,-200.0,0.00027576,2]
[312804028,1706273432586,-7836.05,0.00027614,2]
[312804029,1706273432596,-1854.96,0.00027633,2]
[312804030,1706273432605,-250.0,0.00027659,2]
[312804031,1706273432615,-2000.0,0.0002767,2]
[312804032,1706273432624,-870.4,0.00027679,2]
[312804033,1706273432633,-272.59,0.00027712,2]
[312804034,1706273432643,-750.0,0.00027721,2]
[312804035,1706273432652,-200.0,0.00027748,2]
[312804036,1706273432662,-1823.35,0.0002775,2]
[312804037,1706273432671,-669.61,0.00028093,2]
[312804038,1706273432679,-500.0,0.00028171,2]
[312804039,1706273432689,-154.02860308,0.00028281,2]
[312804040,1706273432698,-10619.91,0.00028443,2]
[312804041,1706273432707,-1311.81,0.00028503,2]
[312804042,1706273432717,-250.0,0.00028573,2]
[312804043,1706273432726,-305.02,0.00028644,2]
[312804044,1706273432736,-713.71,0.00028745,2]
[312804045,1706273432745,-45.17015631,0.00028767,2]
[312804046,1706273432757,-125.86984369,0.00028767,2]
[312804047,1706273432767,-1823.35,0.00028777,2]
[312804048,1706273432776,-160.34,0.00028817,2]
[312804049,1706273432786,-244.96,0.00028876,2]
[312804050,1706273432799,-162.0,0.00028881,2]
[312804051,1706273432810,-500.0,0.00028899,2]
[312804052,1706273432819,-550.0,0.00029,3]
[312804053,1706273432829,-160.34,0.00029031,2]
[312804054,1706273432840,-154.02860308,0.00029145,2]
[312804055,1706273432850,-2328.07,0.00029209,2]
[312804056,1706273432859,-160.34,0.00029246,2]
[312804057,1706273432869,-1399.63,0.00029283,2]
[312804058,1706273432881,-191.38,0.00029283,2]
[312804059,1706273432892,-160.34,0.0002946,2]
[312804060,1706273432903,-160.34,0.00029675,2]
[312804061,1706273432913,-669.61,0.00029737,2]
[312804062,1706273432922,-232.0,0.00029774,2]
[312804063,1706273432931,-337.38602606,0.000298,2]
[312804064,1706273432941,-1823.35,0.00029804,2]
[312804065,1706273432950,-160.34,0.00029889,2]
[312804066,1706273432960,-9650.17359953,0.0003,2]
[312804067,1706273432970,-1430.303875,0.0003,2]
[312804068,1706273432982,-200.0,0.0003,2]
[312804069,1706273432992,-693.05480847,0.0003,2]
[312804070,1706273433005,-155.0,0.00030008,2]
[312804071,1706273433023,-154.02860308,0.00030009,2]
[312804072,1706273433035,-160.34,0.00030104,2]
[312804073,1706273433045,-171.04,0.00030137,2]
[312804074,1706273433055,-200.0,0.00030137,2]
[312804075,1706273433064,-160.34,0.00030318,2]
[312804076,1706273433074,-171.02,0.0003035,2]
[312804077,1706273433085,-434.497036,0.000304,2]
[312804078,1706273433095,-151.40183203,0.000304,2]
[312804079,1706273433105,-1823.35,0.0003083,2]
[312804080,1706273433115,-166.07,0.00030853,2]
[312804081,1706273433125,-154.02860308,0.00030873,2]
[312804082,1706273433137,-600.0,0.00031,3]
[312804083,1706273433147,-155.08,0.0003102,2]
[312804084,1706273433157,-870.4,0.00031139,2]
[312804085,1706273433168,-244.96,0.0003114,2]
[312804086,1706273433179,-92338.66058969,0.00031308,2]
[312804087,1706273433195,-100889.01981031,0.00031308,2]
[312804088,1706273433205,-1042.68056891,0.0003136,2]
[312804089,1706273433215,-979.69206209,0.0003136,2]
[312804090,1706273433225,-669.61,0.00031381,2]
[312804091,1706273433236,-16553.30431585,0.00031406,2]
[312804092,1706273433247,-30438.87590879,0.00031408,7]
[312804093,1706273433258,-18974.64123842,0.00031408,7]
[312804094,1706273433268,-46653.24474769,0.00031408,7]
[312804095,1706273433279,-171.04,0.00031507,2]
[312804096,1706273433290,-180.0,0.00031644,2]
[312804097,1706273433299,-176.58,0.000317,2]
[312804098,1706273433310,-150.0,0.000317,2]
[312804099,1706273433320,-154.02860308,0.00031736,2]
[312804100,1706273433329,-368.51028209,0.00031799,4]
[312804101,1706273433339,-1462.64455723,0.000318,3]
[312804102,1706273433352,-59110.80278687,0.000318,3]
[312804103,1706273433363,-2884.44987353,0.0003183,3]
[312804104,1706273433374,-1200.00000012,0.0003184,2]
[312804105,1706273433383,-1823.35,0.00031857,2]
[312804106,1706273433393,-14422.2493676,0.0003199,3]
[312804107,1706273433403,-6439.36525489,0.00032,2]
[312804108,1706273433414,-1972.82043966,0.00032,2]
[312804109,1706273433425,-500.0,0.00032,2]
[312804110,1706273433438,-3872.64809544,0.00032,4]
[312804111,1706273433448,-200.0,0.00032,2]
[312804112,1706273433457,-453.2262247,0.00032,5]
[312804113,1706273433466,-150.0,0.00032,2]
[312804114,1706273433475,-3000.0,0.00032,2]
[312804115,1706273433486,-306.372201,0.00032,2]
[312804116,1706273433495,-4000.0,0.00032,2]
[312804117,1706273433506,-2318.17773115,0.00032002,3]
[312804118,1706273433532,-268.30796957,0.00032002,3]
[312804119,1706273433545,-806.806,0.00032002,3]
[312804120,1706273433557,-8161.12034263,0.00032002,3]
[312804121,1706273433570,-8502.4858602,0.00032002,3]
[312804126,1706273438191,-458.401112,0.00025,2]
[312804127,1706273438420,-476.72955272,0.00025,2]
[312804128,1706273438432,-500.0,0.00026,2]
[312804129,1706273438442,-3018.70108465,0.00032002,3]
[312804130,1706273438451,-245.68,0.00032011,2]
[312804131,1706273438461,-1745.46,0.00032011,2]
[312804132,1706273438471,-413.9624708,0.00032012,2]
[312804133,1706273438480,-34727.8539489,0.00032012,2]
[312804134,1706273438489,-2884.44987353,0.00032024,3]
[312804135,1706273438498,-1527.4886077,0.00032034,2]
[312804136,1706273438507,-2884.44987353,0.00032179,3]
[312804137,1706273438516,-1584.8281,0.00032189,2]
[312804138,1706273438527,-352.38,0.00032248,2]
[312804139,1706273438536,-718.69659465,0.00032288,4]
[312804140,1706273438546,-5768.89974706,0.00032378,3]
[312804141,1706273438555,-8653.34962059,0.00032379,3]
[312804142,1706273438564,-3184.06928841,0.00032388,4]
[312804143,1706273438573,-941.78794294,0.00032388,4]
[312804144,1706273438582,-1054.75967693,0.00032388,4]
[312804145,1706273438592,-201.3561641,0.00032388,4]
[312804146,1706273438604,-452.31688995,0.00032388,2]
[312804147,1706273438614,-581.76600082,0.00032388,4]
[312804148,1706273438623,-923.07697228,0.00032388,4]
[312804149,1706273438633,-763.38270344,0.00032388,4]
[312804150,1706273438642,-19128.24229398,0.00032389,4]
[312804151,1706273438651,-19686.49999996,0.00032389,4]
[312804152,1706273438660,-5529.91657001,0.00032389,2]
[312804153,1706273438670,-347.47765446,0.0003239,15]
[312804154,1706273438678,-1163.32985877,0.00032397,2]
[312804155,1706273438688,-1901.67024843,0.000324,2]
[312804156,1706273438698,-1901.67024836,0.000324,2]
[312804157,1706273438707,-1901.67024836,0.000324,2]
[312804158,1706273438716,-1901.67024836,0.000324,2]
[312804159,1706273438726,-1901.67024836,0.000324,2]
[312804160,1706273438735,-1901.67024836,0.000324,2]
[312804161,1706273438744,-1901.67024836,0.000324,2]
[312804162,1706273438753,-1901.67024836,0.000324,2]
[312804163,1706273438762,-1901.67024836,0.000324,2]
[312804164,1706273438771,-1901.67024836,0.000324,2]
[312804165,1706273438780,-1901.67024836,0.000324,2]
[312804166,1706273438789,-1901.67024836,0.000324,2]
[312804167,1706273438798,-1901.67024836,0.000324,2]
[312804168,1706273438808,-1901.67024836,0.000324,2]
[312804169,1706273438817,-1901.67024836,0.000324,2]
[312804170,1706273438826,-1901.67024836,0.000324,2]
[312804171,1706273438835,-1901.67024836,0.000324,2]
[312804172,1706273438845,-11485.86772376,0.000324,2]
[312804177,1706273441310,-2071.4852,0.00032002,2]
[312804215,1706273443236,-765.94048441,0.00032002,2]
[312804245,1706273446302,-151.40183204,0.0003078,2]
[312804246,1706273446312,-1162.57431559,0.00032002,2]
[312804247,1706273446322,-524.62089788,0.00032399,4]
[312804248,1706273446331,-10575.69375447,0.000324,2]
[312804249,1706273446343,-72606.72270903,0.000324,2]
[312804250,1706273446353,-245.68,0.00032444,2]
[312804251,1706273446363,-1745.46,0.00032444,2]
[312804252,1706273446372,-1901.67024836,0.00032453,2]
[312804253,1706273446382,-962.07,0.00032466,2]
[312804254,1706273446391,-929.10133064,0.00032466,2]
[312804255,1706273446646,-155.0,0.00032399,2]
[312804256,1706273446655,-956.48866936,0.00032466,2]
[312804257,1706273446666,-943.19,0.00032466,2]
[312804258,1706273446674,-699.60819652,0.00032466,2]
[312804259,1706273446686,-243.58180348,0.00032466,2]
[312804260,1706273446696,-156.35319639,0.000325,2]
[312804261,1706273446705,-3043.37813425,0.000325,2]
[312804262,1706273446719,-67957.80186575,0.000325,2]
[312804263,1706273446728,-1901.67024836,0.00032527,2]
[312804265,1706273446737,-2000.0,0.000326,4]
[312804266,1706273446746,-5000.0,0.000326,3]
[312804267,1706273446760,-1817.07192468,0.000326,4]
[312804268,1706273446769,-151.65984975,0.000326,2]
[312804269,1706273446779,-154.02860308,0.000326,2]
[312804270,1706273446789,-9125.76750838,0.000326,3]
[312804291,1706273565490,195.59458801,0.000237,7]
[312804292,1706273570492,195.59458798,0.0002595,11]
[312804315,1706274037964,150.0,0.00027,7]
[312804331,1706274428769,317.39,0.00020931,2]
[312804369,1706274632294,-230.26204204,0.00021918,2]
[312804371,1706274632304,-181.43795796,0.00021918,2]
[312804375,1706274632341,-19.00043683,0.00021918,2]
[312804377,1706274632351,-350.78,0.00022,2]
[312804379,1706274632360,-585.24339239,0.00022078,2]
[312804381,1706274632369,-150.0,0.00022093,2]
[312804383,1706274632378,-3136.41183669,0.00022094,2]
[312804386,1706274632398,-2781.03967879,0.00022094,2]
[312804388,1706274632410,-2249.4741709,0.00022094,2]
[312804390,1706274632422,-2613.10872722,0.00022094,2]
[312804395,1706274632453,-59411.62543154,0.00022094,2]
[312804399,1706274632509,-19155.52703777,0.00022094,2]
[312804427,1706274638239,-7139.49937052,0.00022094,2]
[312804434,1706274638298,-440.7,0.00022094,2]
[312804438,1706274638741,-561.46625153,0.00022094,2]
[312804439,1706274638852,-3850.0,0.00022094,2]
[312804440,1706274638865,-394.14575585,0.00022094,2]
[312804441,1706274638912,-473.26645964,0.00022094,2]
[312804442,1706274638923,-2174.97964975,0.00022094,2]
[312804443,1706274638935,-4711.51110454,0.00022094,2]
[312804444,1706274639024,-874.78595397,0.00022094,2]
[312804445,1706274639036,-4516.69215914,0.00022094,2]
[312804446,1706274639081,-5387.76641215,0.00022094,2]
[312804447,1706274639091,-302.00312186,0.00022315,2]
[312804448,1706274639101,-1000.0,0.00022316,2]
[312804449,1706274639110,-478.90161544,0.000225,2]
[312804450,1706274639120,-163.59150026,0.00022668,2]
[312804451,1706274639129,-191.38,0.00022694,2]
[312804452,1706274639139,-498.38564661,0.00022768,2]
[312804453,1706274639148,-2000.0,0.00022799,2]
[312804455,1706274639158,-334.8,0.00022827,2]
[312804456,1706274639167,-522.24,0.00022869,2]
[312804457,1706274639176,-19066.3535,0.00022898,2]
[312804458,1706274639186,-417.8227,0.000229,2]
[312804459,1706274639198,-163.59150025,0.000229,2]
[312804460,1706274639208,-1665.64926429,0.000229,2]
[312804461,1706274639217,-151.68566645,0.000229,2]
[312804462,1706274639226,-702.89599281,0.000229,2]
[312804463,1706274639236,-2400.23967508,0.000229,2]
[312804464,1706274639246,-173.75968148,0.000229,2]
[312804465,1706274639255,-2143.98939105,0.00022998,2]
[312804467,1706274639264,-528.74144808,0.00022998,2]
[312804468,1706274639274,-326.80144788,0.00022998,2]
[312804469,1706274639284,-197.40422307,0.00022998,2]
[312804470,1706274639293,-6306.41321598,0.00022998,2]
[312804471,1706274639302,-7778.02316605,0.00022998,2]
[312804472,1706274639311,-173.65252052,0.00022998,2]
[312804473,1706274639321,-157.06941683,0.00022998,2]
[312804474,1706274639330,-2963.8992538,0.00022998,2]
[312804475,1706274639340,-1188.57964056,0.00022998,2]
[312804476,1706274639350,-386.6891831,0.00022998,2]
[312804477,1706274639359,-1708.02080546,0.00022998,2]
[312804478,1706274639368,-4562.1975655,0.00022998,2]
[312804479,1706274639377,-203.09146154,0.00022998,2]
[312804480,1706274639387,-383.76753435,0.00022998,2]
[312804481,1706274639396,-10513.08241403,0.00022998,2]
[312804482,1706274639405,-169.32677567,0.00022998,2]
[312804483,1706274639414,-7052.75000002,0.00022998,2]
[312804484,1706274639423,-1028.69820676,0.00022998,2]
[312804485,1706274639432,-346.30115323,0.00022998,2]
[312804486,1706274639442,-248.66279264,0.00022998,2]
[312804487,1706274639451,-437.3133342,0.00022998,2]
[312804488,1706274639460,-373.94252295,0.00022998,2]
[312804489,1706274639469,-1943.83978376,0.00022998,2]
[312804490,1706274639478,-287.79296336,0.00022998,2]
[312804491,1706274639488,-524.00696478,0.00022998,2]
[312804492,1706274639498,-226.87966989,0.00022998,2]
[312804493,1706274639507,-203.90724708,0.00022998,2]
[312804494,1706274639517,-2415.3,0.00022998,2]
[312804495,1706274639526,-21304.1426625,0.00022999,2]
[312804496,1706274639536,-500.0,0.00022999,2]
[312804497,1706274639545,-500.0,0.00022999,2]
[312804498,1706274639554,-497.71825504,0.00022999,2]
[312804499,1706274639563,-426.85203897,0.00022999,2]
[312804500,1706274639573,-500.0,0.00022999,2]
[312804501,1706274639582,-560.33617378,0.00022999,2]
[312804502,1706274639592,-568.10085213,0.00022999,2]
[312804503,1706274639602,-350.0,0.00022999,2]
[312804504,1706274639610,-500.0,0.00022999,2]
[312804505,1706274639620,-400.0,0.00022999,2]
[312804506,1706274639629,-350.0,0.00022999,2]
[312804507,1706274639639,-2847744.72651684,0.00023,2]
[312804508,1706274640759,-318.62401798,0.00023,2]
[312804509,1706274640922,-494.03185573,0.00023,2]
[312804510,1706274641638,-7664.91924006,0.00023,2]
[312804543,1706274643417,-265.07308567,0.00023,2]
[312804544,1706274643429,-500.0,0.00023,2]
[312804545,1706274643474,-2250.0,0.00023,2]
[312804546,1706274643485,-446.53762245,0.00023,2]
[312804547,1706274643496,-330.00707046,0.00023,2]
[312804548,1706274643535,-827.87646147,0.00023,2]
[312804549,1706274643547,-501.74237755,0.00023,2]
[312804563,1706274646567,-17031.5231092,0.00023,2]
[312804590,1706274746066,400.0,0.000226,8]
[312804591,1706274748175,900.0,0.000227,8]
[312804592,1706274750271,1400.0,0.000228,8]
[312804593,1706274752434,1900.0,0.000229,8]
[312804594,1706274754550,2400.0,0.000259,9]
[312804595,1706274792150,459.79537561,0.000302,120]
[312804596,1706275029236,1000.0,0.00025,9]
[312804606,1706275081356,1000.0,0.00027,7]
[312804617,1706275343461,321.55,0.0002118,2]
[312804620,1706275831464,-499.05471673,0.00021805,2]
[312804621,1706275831476,-25.80398396,0.00021805,2]
[312804622,1706275831486,-221.0,0.00021806,2]
[312804623,1706275831495,-202.00002,0.00021806,2]
[312804624,1706275831505,-79.76657716,0.000219,2]
[312804625,1706275831591,-76.77494851,0.000219,2]
[312804626,1706275831601,-652.5496,0.00021994,2]
[312804627,1706275831611,-157.95826018,0.00022,2]
[312804628,1706275831621,-300.3102,0.00022698,2]
[312804629,1706275831630,-3309.98710741,0.00022798,2]
[312804630,1706275831642,-607.87823177,0.00022798,2]
[312804631,1706275831653,-280.56667432,0.00022798,2]
[312804632,1706275831664,-384.86813329,0.00022798,2]
[312804633,1706275831676,-303.77486671,0.00022798,2]
[312804634,1706275831690,-700.0,0.00022798,2]
[312804635,1706275831701,-644.4678865,0.00022798,2]
[312804636,1706275831711,-710.99,0.00022869,2]
[312804638,1706275831720,-4680.14017965,0.00022898,2]
[312804639,1706275831732,-464.2921056,0.00022898,2]
[312804640,1706275831743,-824.166,0.00022898,2]
[312804641,1706275831754,-1971.44374651,0.00022898,2]
[312804642,1706275831770,-1117.35616824,0.00022898,2]
[312804644,1706275831780,-206.2467,0.00022898,2]
[312804646,1706275831789,-723.0214,0.00022899,2]
[312804648,1706275831798,-1835.0968,0.00022899,2]
[312804650,1706275831808,-499.99,0.000229,2]
[312804652,1706275831817,-634.4983,0.000229,2]
[312804654,1706275831827,-1740.8423526,0.000229,2]
[312804656,1706275831837,-151.68175697,0.000229,2]
[312804658,1706275831846,-444.24745284,0.000229,2]
[312804660,1706275831855,-254.84753281,0.000229,2]
[312804662,1706275831864,-254.9195544,0.000229,2]
[312804663,1706275831873,-715.42334293,0.000229,2]
[312804664,1706275831883,-614.96513183,0.000229,2]
[312804665,1706275831892,-158.35484109,0.0002299,2]
[312804666,1706275831901,-5697.44,0.00022997,2]
[312804667,1706275831911,-400.0,0.00022998,2]
[312804668,1706275831921,-304.20615048,0.00022998,2]
[312804669,1706275831930,-2447.43377176,0.00022998,2]
[312804670,1706275831941,-16763.88062595,0.00022998,2]
[312804671,1706275831951,-36127.7488758,0.00022998,2]
[312804703,1706275838751,-5720.89683709,0.00022998,2]
[312804705,1706275838760,-18889.59978392,0.00022998,2]
[312804714,1706275838865,-35836.34175221,0.00022998,2]
[312804716,1706275838875,-8688.17633727,0.00022999,2]
[312804718,1706275838885,-36024.17230812,0.00023,2]
[312804720,1706275838897,-2074.14907395,0.00023,2]
[312804722,1706275838908,-1443.8991567,0.00023,2]
[312804725,1706275838920,-736.8814764,0.00023,2]
[312804729,1706275838982,-304.12370797,0.00023,2]
[312804730,1706275838993,-2854944.72651684,0.00023,2]
[312804741,1706275839991,-1251.55317861,0.00023,2]
[312804742,1706275840049,-2925.12003012,0.00023,2]
[312804743,1706275840110,-1258.4088332,0.00023,2]
[312804744,1706275840809,-660.00660538,0.00023,2]
[312804745,1706275840821,-503.4787228,0.00023,2]
[312804746,1706275840833,-2096.88942287,0.00023,2]
[312804747,1706275840845,-1556.0813006,0.00023,2]
[312804748,1706275840857,-301.71265299,0.00023,2]
[312804811,1706275842705,-10509.315,0.00023,2]
[312804812,1706275842717,-426.62274301,0.00023,2]
[312804813,1706275842729,-2004.971,0.00023,2]
[312804814,1706275845624,-868.5287917,0.00023,2]
[312804815,1706275845742,-513.634,0.00023,2]
[312804816,1706275845754,-6126.9700617,0.00023,2]
[312804817,1706275845763,-25975.67735328,0.00023,2]
[312804818,1706275845808,-566.28970534,0.00023,2]
[312804868,1706275866668,8343.09071046,0.0002118,2]
[312804869,1706275872592,177.21873968,0.0002118,2]
[312804878,1706276336247,400.6,0.00020678,2]
[312804879,1706276385956,203.35,0.0002189,2]
[312804880,1706276928556,380.57,0.00020206,2]
[312804890,1706276997071,150.06,0.0002188,2]
[312804908,1706277031628,-942.61337864,0.0002207,2]
[312804909,1706277031638,-2293.83911304,0.00022071,2]
[312804910,1706277031695,-3077.70251784,0.00022071,2]
[312804911,1706277031764,-646.67507909,0.00022071,2]
[312804912,1706277031776,-632.83725849,0.00022071,2]
[312804913,1706277031836,-1684.05,0.00022071,2]
[312804914,1706277031847,-501.9,0.00022071,2]
[312804915,1706277031858,-302.6740637,0.00022071,2]
[312804916,1706277031899,-8684.44196784,0.00022071,2]
[312804917,1706277031909,-2801.99429503,0.00022078,2]
[312804918,1706277031918,-1448.94,0.00022209,2]
[312804919,1706277031927,-203.35,0.00022236,2]
[312804920,1706277031937,-417.8,0.00022328,2]
[312804921,1706277031947,-466.64,0.00022383,2]
[312804922,1706277031960,-380.57,0.0002247,2]
[312804924,1706277031969,-1577.24713164,0.00022486,2]
[312804926,1706277031978,-582.2,0.00022488,2]
[312804928,1706277031988,-723.89,0.00022591,2]
[312804930,1706277031997,-150.00000004,0.00022672,2]
[312804932,1706277032006,-713.45,0.00022735,2]
[312804934,1706277032015,-712.23,0.00022735,2]
[312804936,1706277032023,-734.37,0.00022735,2]
[312804938,1706277032034,-732.98,0.00022735,2]
[312804940,1706277032044,-738.11,0.00022754,2]
[312804942,1706277032053,-728.23,0.00022757,2]
[312804944,1706277032062,-717.84,0.00022762,2]
[312804946,1706277032070,-731.83,0.00022767,2]
[312804948,1706277032079,-732.49,0.00022767,2]
[312804950,1706277032088,-574.2,0.00022767,2]
[312804952,1706277032097,-737.62,0.00022768,2]
[312804954,1706277032106,-5972.49578516,0.00022768,2]
[312804956,1706277032115,-1778.05909525,0.0002277,2]
[312804957,1706277032124,-503.91173672,0.000228,2]
[312804958,1706277032134,-625.99542509,0.000229,2]
[312804959,1706277032143,-158.35484109,0.0002299,2]
[312804960,1706277032151,-1000.0,0.00022998,2]
[312804961,1706277032160,-170.30905286,0.00022998,2]
[312804962,1706277032170,-156.26192924,0.00022998,2]
[312804963,1706277032179,-326.15641828,0.00022998,2]
[312804964,1706277032188,-156.78814414,0.00022998,2]
[312804965,1706277032198,-7230.61850176,0.00022998,2]
[312804966,1706277032210,-1316.20749776,0.00022998,2]
[312804968,1706277037635,-5792.45641852,0.00022998,2]
[312804970,1706277037645,-220.57486581,0.00022998,2]
[312804972,1706277037655,-1317.93249377,0.00022998,2]
[312804973,1706277037664,-668.25583464,0.00022999,2]
[312804974,1706277037673,-2934.28598299,0.00022999,2]
[312804975,1706277037682,-52281.3923727,0.00022999,2]
[312804976,1706277037692,-76733.94026172,0.00023,2]
[312804977,1706277037710,-1931.66442862,0.00023,2]
[312804978,1706277037769,-20841.06632858,0.00023,2]
[312804979,1706277037835,-25675.25715787,0.00023,2]
[312804980,1706277037964,-3618.736,0.00023,2]
[312805020,1706277040911,-2923.62999489,0.00023,2]
[312805021,1706277041085,-10437.31798,0.00023,2]
[312805070,1706277042794,-10840.0,0.00023,2]
[312805071,1706277042806,-422.74681633,0.00023,2]
[312805072,1706277042818,-613.09825755,0.00023,2]
[312805073,1706277042829,-371.88983172,0.00023,2]
[312805074,1706277042858,-512031.99761014,0.00023,2]